fUSD/lending_fUSD_20251031
["ID","MTS","AMOUNT","RATE_DAILY","PERIOD"]
[392793339,1761954108135,500.0,0.00030136,120]
[392793340,1761954108549,532.07,0.00030136,120]
[392793341,1761954109627,500.0,0.00030136,120]
[392793342,1761954109754,503.87,0.00030136,120]
[392793343,1761954113130,500.0,0.00030136,120]
[392793344,1761954113775,500.0,0.00030136,120]
[392793345,1761954114037,382.9832799,0.00030136,120]
[392793346,1761954114780,500.0,0.00030136,120]
[392793347,1761954115916,500.0,0.00030136,120]
[392793348,1761954117077,500.0,0.00030136,120]
[392793349,1761954118011,500.0,0.00030136,120]
[392793350,1761954118494,615.44,0.00030136,120]
[392793351,1761954118545,500.0,0.00030136,120]
[392793352,1761954118727,500.0,0.00030136,120]
[392793353,1761954122173,500.0,0.00030136,120]
[392793354,1761954122277,500.0,0.00030136,120]
[392793355,1761954122672,500.0,0.00030136,120]
[392793356,1761954122808,500.0,0.00030136,120]
[392793357,1761954124389,500.0,0.00030136,120]
[392793358,1761954125135,500.0,0.00030136,120]
[392793359,1761954128255,484.57366133,0.00030136,120]
[392793360,1761954128976,500.0,0.00030136,120]
[392793361,1761954129193,500.0,0.00030136,120]
[392793362,1761954129395,1941.98,0.00030136,120]
[392793363,1761954130875,500.0,0.00030136,120]
[392793364,1761954133910,641.55085323,0.00030136,120]
[392793365,1761954134257,500.0,0.00030136,120]
[392793366,1761954136396,546.7,0.00030136,120]
[392793367,1761954138941,500.0,0.00030136,120]
[392793368,1761954139874,500.0,0.00030136,120]
[392793369,1761954141425,500.0,0.00030136,120]
[392793370,1761954143907,517.83041015,0.00030136,120]
[392793371,1761954144347,500.0,0.00030136,120]
[392793372,1761954145373,535.50318381,0.00030136,120]
[392793373,1761954146854,3423.95,0.00030136,120]
[392793374,1761954146954,500.0,0.00030136,120]
[392793375,1761954151264,316.60530267,0.00030136,120]
[392793376,1761954151320,500.0,0.00030136,120]
[392793377,1761954153031,500.0,0.00030136,120]
[392793378,1761954155264,500.0,0.00030136,120]
[392793379,1761954156019,500.0,0.00030136,120]
[392793380,1761954156758,155.94,6.985e-05,2]
[392793381,1761954156952,155.94,7.353e-05,2]
[392793382,1761954157157,155.94,7.721e-05,2]
[392793383,1761954157292,500.0,0.00030136,120]
[392793384,1761954157405,155.94,8.088e-05,2]
[392793385,1761954157556,155.94,8.456e-05,2]
[392793386,1761954157960,155.94,8.824e-05,2]
[392793387,1761954158362,155.94,9.191e-05,2]
[392793388,1761954158430,155.94,9.559e-05,2]
[392793389,1761954158653,155.94,9.927e-05,2]
[392793390,1761954158902,76.91272915,0.00010294,2]
[392793391,1761954158928,79.02727085,0.00010294,2]
[392793392,1761954159239,500.0,0.00030136,120]
[392793393,1761954159285,155.94,0.00010662,2]
[392793394,1761954159437,155.94,0.0001103,2]
[392793395,1761954159629,155.94,0.00011397,2]
[392793396,1761954159838,155.94,0.00011765,2]
[392793397,1761954160043,155.94,0.00012132,2]
[392793398,1761954160279,155.94,0.000125,2]
[392793399,1761954160474,155.94,0.00012868,2]
[392793400,1761954160699,155.94,0.00013235,2]
[392793401,1761954160908,155.94,0.00013603,2]
[392793402,1761954161150,500.0,0.00030136,120]
[392793403,1761954166973,500.0,0.00030136,120]
[392793404,1761954167512,500.0,0.00030136,120]
[392793405,1761954169860,500.0,0.00030136,120]
[392793406,1761954176190,500.0,0.00030136,120]
[392793407,1761954178741,500.0,0.00030136,120]
[392793408,1761954182106,500.0,0.00030136,120]
[392793409,1761954183928,500.0,0.00030136,120]
[392793410,1761954186911,554.00312959,0.00030136,120]
[392793411,1761954191166,500.0,0.00030136,120]
[392793412,1761954191901,500.0,0.00030136,120]
[392793413,1761954193679,909.03,0.00030136,120]
[392793414,1761954196388,500.0,0.00030136,120]
[392793415,1761954201897,500.0,0.00030136,120]
[392793416,1761954204151,500.0,0.00030136,120]
[392793417,1761954207216,500.0,0.00030136,120]
[392793418,1761954218614,500.0,0.00030136,120]
[392793419,1761954222763,500.0,0.00030136,120]
[392793420,1761954223519,500.0,0.00030136,120]
[392793421,1761954224754,500.0,0.00030136,120]
[392793422,1761954226739,500.0,0.00030136,120]
[392793423,1761954233995,500.0,0.00030136,120]
[392793424,1761954235508,500.0,0.00030136,120]
[392793425,1761954236728,500.0,0.00030136,120]
[392793426,1761954242478,455.7319949,0.00030136,120]
[392793427,1761954242587,314.41303446,0.00030136,120]
[392793428,1761954243819,500.0,0.00030136,120]
[392793429,1761954245625,500.0,0.00030136,120]
[392793430,1761954252023,552.17,0.00030136,120]
[392793431,1761954254757,500.0,0.00030136,120]
[392793432,1761954255765,500.0,0.00030136,120]
[392793433,1761954258633,500.0,0.00030136,120]
[392793434,1761954262598,500.0,0.00030136,120]
[392793435,1761954264450,743.04,0.00030136,120]
[392793436,1761954264656,500.0,0.00030136,120]
[392793437,1761954264887,500.0,0.00030136,120]
[392793438,1761954267194,500.0,0.00030136,120]
[392793439,1761954269311,462.09567086,0.00030136,120]
[392793440,1761954270470,500.0,0.00030136,120]
[392793441,1761954270899,500.0,0.00030136,120]
[392793442,1761954271610,500.0,0.00030136,120]
[392793443,1761954272042,500.0,0.00030136,120]
[392793444,1761954274233,496.36929326,0.00030136,120]
[392793445,1761954276404,500.0,0.00030136,120]
[392793446,1761954277744,500.0,0.00030136,120]
[392793447,1761954278036,500.0,0.00030136,120]
[392793448,1761954278584,393.8326499,0.00030136,120]
[392793449,1761954280208,240.06917332,0.00030136,120]
[392793450,1761954281081,500.0,0.00030136,120]
[392793451,1761954281640,500.0,0.00030136,120]
[392793452,1761954285833,500.0,0.00030136,120]
[392793453,1761954286173,500.0,0.00030136,120]
[392793454,1761954287981,300.0,0.00030136,120]
[392793455,1761954292981,500.0,0.00030136,120]
[392793456,1761954294461,500.0,0.00030136,120]
[392793457,1761954295245,500.0,0.00030136,120]
[392793458,1761954296006,667.44,0.00030136,120]
[392793459,1761954296900,500.0,0.00030136,120]
[392793460,1761954299520,500.0,0.00030136,120]
[392793461,1761954301298,500.0,0.00030136,120]
[392793462,1761954301861,500.0,0.00030136,120]
[392793463,1761954303885,500.0,0.00030136,120]
[392793464,1761954305263,500.0,0.00030136,120]
[392793465,1761954306640,150.0,0.00013488,2]
[392793466,1761954309298,500.0,0.00030136,120]
[392793467,1761954309450,150.0,0.00013488,2]
[392793468,1761954310034,500.0,0.00030136,120]
[392793469,1761954310235,500.0,0.00030136,120]
[392793470,1761954311203,150.0,0.00013488,2]
[392793471,1761954312516,616.06,0.00030136,120]
[392793472,1761954314238,500.0,0.00030136,120]
[392793473,1761954314434,150.0,0.00013488,2]
[392793474,1761954314984,152.22718871,0.00013488,2]
[392793475,1761954316906,500.0,0.00030136,120]
[392793476,1761954317211,500.0,0.00030136,120]
[392793477,1761954318697,150.0,0.00013488,2]
[392793478,1761954319906,500.0,0.00030136,120]
[392793479,1761954322638,615.93317658,0.00030136,120]
[392793480,1761954324020,179.06671503,0.00030136,120]
[392793481,1761954324112,150.0,0.00013488,2]
[392793482,1761954324537,500.0,0.00030136,120]
[392793483,1761954326449,150.0,0.00013488,2]
[392793484,1761954326556,500.0,0.00030136,120]
[392793485,1761954326597,150.0,0.00013488,2]
[392793486,1761954326814,197.84576896,0.00013488,2]
[392793487,1761954326872,500.0,0.00030136,120]
[392793488,1761954326908,150.0,0.00013488,2]
[392793489,1761954326955,286.65334943,0.00013488,2]
[392793490,1761954327436,500.0,0.00030136,120]
[392793491,1761954327725,500.0,0.00030136,120]
[392793492,1761954327865,500.0,0.00030136,120]
[392793493,1761954327970,500.0,0.00030136,120]
[392793494,1761954328353,153.73969324,0.00013488,2]
[392793495,1761954329035,500.0,0.00030136,120]
[392793496,1761954329307,654.97,0.00030136,120]
[392793497,1761954330853,150.0,0.00013488,2]
[392793498,1761954331586,500.0,0.00030136,120]
[392793499,1761954334016,533.7,0.00030136,120]
[392793500,1761954335679,150.0,0.00013488,2]
[392793501,1761954335807,150.0,0.00013488,2]
[392793502,1761954336643,254.05230956,0.00030136,120]
[392793503,1761954337274,500.0,0.00030136,120]
[392793504,1761954337828,585.92,0.00030136,120]
[392793505,1761954339223,500.0,0.00030136,120]
[392793506,1761954340196,500.0,0.00030136,120]
[392793507,1761954340846,500.0,0.00030136,120]
[392793508,1761954341507,500.0,0.00030136,120]
[392793509,1761954342361,500.0,0.00030136,120]
[392793510,1761954342890,635.44428798,0.00030136,120]
[392793511,1761954343293,500.0,0.00030136,120]
[392793512,1761954346862,1000.0,0.00030136,120]
[392793513,1761954350795,500.0,0.00030136,120]
[392793514,1761954350893,500.0,0.00030136,120]
[392793515,1761954351199,412.90039233,0.00030136,120]
[392793516,1761954352006,500.0,0.00030136,120]
[392793517,1761954353193,500.0,0.00030136,120]
[392793518,1761954353434,500.0,0.00030136,120]
[392793519,1761954355628,500.0,0.00030136,120]
[392793520,1761954358290,500.0,0.00030136,120]
[392793521,1761954359018,500.0,0.00030136,120]
[392793522,1761954360096,500.0,0.00030136,120]
[392793523,1761954361281,500.0,0.00030136,120]
[392793524,1761954361769,327.25693194,0.00030136,120]
[392793525,1761954362291,500.0,0.00030136,120]
[392793526,1761954366054,500.0,0.00030136,120]
[392793527,1761954368001,500.0,0.00030136,120]
[392793528,1761954368554,500.0,0.00030136,120]
[392793529,1761954371155,500.0,0.00030136,120]
[392793530,1761954374892,500.0,0.00030136,120]
[392793531,1761954376680,3281.29,0.00030136,120]
[392793532,1761954382413,523.92,0.00030136,120]
[392793533,1761954384078,388.80880959,0.0003,120]
[392793534,1761954384170,500.0,0.00030136,120]
[392793535,1761954389065,500.0,0.00030136,120]
[392793536,1761954389970,500.0,0.00030136,120]
[392793537,1761954390715,500.0,0.00030136,120]
[392793538,1761954391626,500.0,0.00030136,120]
[392793539,1761954392215,500.0,0.00030136,120]
[392793540,1761954397719,500.0,0.00030136,120]
[392793541,1761954398150,500.0,0.00030136,120]
[392793542,1761954398802,500.0,0.00030136,120]
[392793543,1761954400407,500.0,0.00030136,120]
[392793544,1761954400526,500.0,0.00030136,120]
[392793545,1761954401358,635.00142157,0.00030136,120]
[392793546,1761954402202,500.0,0.00030136,120]
[392793547,1761954405328,500.0,0.00030136,120]
[392793548,1761954405399,500.0,0.00030136,120]
[392793549,1761954407679,404.86197433,0.00030136,120]
[392793550,1761954407971,500.0,0.00030136,120]
[392793551,1761954409584,500.0,0.00030136,120]
[392793552,1761954411592,500.0,0.00030136,120]
[392793553,1761954412081,500.0,0.00030136,120]
[392793554,1761954412280,500.0,0.00030136,120]
[392793555,1761954413101,500.0,0.00030136,120]
[392793556,1761954416379,500.0,0.00030136,120]
[392793557,1761954418071,500.0,0.00030136,120]
[392793558,1761954418901,500.0,0.00030136,120]
[392793559,1761954419509,500.0,0.00030136,120]
[392793560,1761954421526,500.0,0.00030136,120]
[392793561,1761954426353,228.96175839,0.00030136,120]
[392793562,1761954428056,646.44382439,0.00030136,120]
[392793563,1761954431972,500.0,0.00030136,120]
[392793564,1761954433683,500.0,0.00030136,120]
[392793565,1761954435711,500.0,0.00030136,120]
[392793566,1761954437834,500.0,0.00030136,120]
[392793567,1761954440959,500.0,0.00030136,120]
[392793568,1761954446909,500.0,0.00030136,120]
[392793569,1761954449089,500.0,0.00030136,120]
[392793570,1761954450451,500.0,0.00030136,120]
[392793571,1761954453847,500.0,0.00030136,120]
[392793572,1761954454049,500.0,0.00030136,120]
[392793573,1761954458287,500.0,0.00030136,120]
[392793574,1761954461275,500.0,0.00030136,120]
[392793575,1761954461564,500.0,0.00030136,120]
[392793576,1761954461706,587.49,0.00030136,120]
[392793577,1761954462446,500.0,0.00030136,120]
[392793578,1761954463139,500.0,0.00030136,120]
[392793579,1761954463816,500.0,0.00030136,120]
[392793580,1761954465780,500.0,0.00030136,120]
[392793581,1761954466141,500.0,0.00030136,120]
[392793582,1761954468860,500.0,0.00030136,120]
[392793583,1761954468972,500.0,0.00030136,120]
[392793584,1761954471957,500.0,0.00030136,120]
[392793585,1761954474328,500.0,0.00030136,120]
[392793586,1761954476387,500.0,0.00030136,120]
[392793587,1761954480415,500.0,0.00030136,120]
[392793588,1761954481041,500.0,0.00030136,120]
[392793589,1761954482422,500.0,0.00030136,120]
[392793590,1761954484855,500.0,0.00030136,120]
[392793591,1761954485737,455.33190839,0.00030136,120]
[392793592,1761954486490,500.0,0.00030136,120]
[392793593,1761954488776,500.0,0.00030136,120]
[392793594,1761954489559,286.02797064,0.00030136,120]
[392793595,1761954489657,609.2,0.00030136,120]
[392793596,1761954490549,500.0,0.00030136,120]
[392793597,1761954490750,500.0,0.00030136,120]
[392793598,1761954491722,500.0,0.00030136,120]
[392793599,1761954495718,649.0,0.00030136,120]
[392793600,1761954498995,500.0,0.00030136,120]
[392793601,1761954503883,500.0,0.00030136,120]
[392793602,1761954504785,500.0,0.00030136,120]
[392793603,1761954507050,500.0,0.00030136,120]
[392793604,1761954510072,500.0,0.00030136,120]
[392793605,1761954511154,253.22236703,0.00030136,120]
[392793606,1761954515689,500.0,0.00030136,120]
[392793607,1761954516803,1208.11,0.00030136,120]
[392793608,1761954518010,543.42,0.00030136,120]
[392793609,1761954519278,418.11379782,0.00030136,120]
[392793610,1761954519969,500.0,0.00030136,120]
[392793611,1761954520531,500.0,0.00030136,120]
[392793612,1761954523594,500.0,0.00030136,120]
[392793613,1761954524723,537.36991381,0.00030136,120]
[392793614,1761954526570,500.0,0.00030136,120]
[392793615,1761954527682,500.0,0.00030136,120]
[392793616,1761954529191,325.59715407,0.00030136,120]
[392793617,1761954534398,500.0,0.00030136,120]
[392793618,1761954534832,500.0,0.00030136,120]
[392793619,1761954535331,500.0,0.00030136,120]
[392793620,1761954535399,500.0,0.00030136,120]
[392793621,1761954535836,500.0,0.00030136,120]
[392793622,1761954535887,500.0,0.00030136,120]
[392793623,1761954535943,500.0,0.00030136,120]
[392793624,1761954538269,500.0,0.00030136,120]
[392793625,1761954540393,500.0,0.00030136,120]
[392793626,1761954541132,500.0,0.00030136,120]
[392793627,1761954542021,500.0,0.00030136,120]
[392793628,1761954542186,500.0,0.00030136,120]
[392793629,1761954544001,600.76,0.00030136,120]
[392793630,1761954545117,500.0,0.00030136,120]
[392793631,1761954545558,500.0,0.00030136,120]
[392793632,1761954549950,500.0,0.00030136,120]
[392793633,1761954554401,384.94777518,0.00030136,120]
[392793634,1761954555331,500.0,0.00030136,120]
[392793635,1761954558020,391.88135977,0.00030136,120]
[392793636,1761954560269,500.0,0.00030136,120]
[392793637,1761954563024,500.0,0.00030136,120]
[392793638,1761954563484,500.0,0.00030136,120]
[392793639,1761954567128,500.0,0.00030136,120]
[392793640,1761954567961,495.86215377,0.00030136,120]
[392793641,1761954569928,500.0,0.00030136,120]
[392793642,1761954573201,1000.0,0.00030136,120]
[392793643,1761954574931,500.0,0.00030136,120]
[392793644,1761954577997,500.0,0.00030136,120]
[392793645,1761954578067,561.5,0.00030136,120]
[392793646,1761954580287,500.0,0.00030136,120]
[392793647,1761954581547,500.0,0.00030136,120]
[392793648,1761954586048,500.0,0.00030136,120]
[392793649,1761954590068,500.0,0.00030136,120]
[392793650,1761954592763,500.0,0.00030136,120]
[392793651,1761954597430,500.0,0.00030136,120]
[392793727,1761954603264,500.0,0.00030136,120]
[392793728,1761954603334,500.0,0.00030136,120]
[392793730,1761954604561,338.61002583,0.00030136,120]
[392793756,1761954606380,500.0,0.00030136,120]
[392793757,1761954606754,500.0,0.00030136,120]
[392793758,1761954607115,500.0,0.00030136,120]
[392793759,1761954607859,500.0,0.00030136,120]
[392793761,1761954614379,500.0,0.00030136,120]
[392793762,1761954615085,500.0,0.00030136,120]
[392793763,1761954616945,502.09,0.00030136,120]
[392793764,1761954618031,3144.56,0.00030136,120]
[392793765,1761954619108,500.0,0.00030136,120]
[392793766,1761954620121,500.0,0.00030136,120]
[392793767,1761954623467,500.0,0.00030136,120]
[392793768,1761954626893,500.0,0.00030136,120]
[392793769,1761954629279,500.0,0.00030136,120]
[392793770,1761954630499,500.0,0.00030136,120]
[392793771,1761954631542,635.25,0.00030136,120]
[392793773,1761954631606,-166.66,0.00013699,2]
[392793774,1761954631616,-195.0,0.000137,2]
[392793775,1761954631627,-150.0,0.00013702,2]
[392793776,1761954631638,-150.0,0.00013737,2]
[392793777,1761954631650,-4.34,0.00013737,2]
[392793778,1761954631742,-145.66,0.00013737,2]
[392793779,1761954631751,-150.0,0.00013737,2]
[392793780,1761954631761,-150.0,0.00013737,2]
[392793781,1761954631771,-150.0,0.00013737,2]
[392793782,1761954631781,-150.0,0.00013916,2]
[392793783,1761954631790,-166.66,0.00013933,2]
[392793784,1761954631799,-155.94,0.00013971,2]
[392793785,1761954631808,-641.56816135,0.00013986,2]
[392793786,1761954631889,-558.43183865,0.00013986,2]
[392793788,1761954631898,-300.0,0.00013986,2]
[392793790,1761954631908,-300.0,0.00013986,2]
[392793791,1761954631917,-208.30598529,0.00013986,2]
[392793792,1761954631928,-991.69401471,0.00013986,2]
[392793793,1761954631937,-150.0,0.00013987,2]
[392793795,1761954631947,-150.0,0.00013987,2]
[392793797,1761954631956,-150.0,0.00013987,2]
[392793799,1761954631965,-150.0,0.00013987,2]
[392793800,1761954631975,-150.0,0.00013987,2]
[392793801,1761954631984,-150.0,0.00013987,2]
[392793803,1761954631993,-150.0,0.00014054,2]
[392793804,1761954632003,-150.0,0.0001413,2]
[392793805,1761954632012,-166.66,0.00014167,2]
[392793806,1761954632023,-200.0,0.00014182,2]
[392793807,1761954632032,-150.0,0.00014237,2]
[392793808,1761954632041,-65.94157429,0.00014237,2]
[392793809,1761954632059,-84.05842571,0.00014237,2]
[392793810,1761954632068,-150.0,0.00014237,2]
[392793812,1761954632078,-150.0,0.00014237,2]
[392793814,1761954632095,-150.0,0.00014237,2]
[392793816,1761954632105,-150.0,0.00014237,2]
[392793819,1761954632114,-150.0,0.00014237,2]
[392793822,1761954632123,-150.0,0.00014344,2]
[392793825,1761954632140,-166.66,0.00014401,2]
[392793827,1761954632152,-150.0,0.00014487,2]
[392793829,1761954632161,-150.0,0.00014487,2]
[392793831,1761954632170,-150.0,0.00014487,2]
[392793833,1761954632180,-150.0,0.00014487,2]
[392793835,1761954632189,-150.0,0.00014487,2]
[392793836,1761954632198,-150.0,0.00014487,2]
[392793837,1761954632208,-150.0,0.00014558,2]
[392793838,1761954632217,-551.0,0.00014566,2]
[392793839,1761954632227,-166.66,0.00014636,2]
[392793840,1761954632236,-551.0,0.00014664,2]
[392793841,1761954632245,-164.40986447,0.00014686,2]
[392793842,1761954632254,-166.66,0.00014692,2]
[392793843,1761954632264,-150.0,0.00014692,2]
[392793844,1761954632273,-150.0,0.00014737,2]
[392793845,1761954632283,-150.0,0.00014737,2]
[392793846,1761954632292,-150.0,0.00014737,2]
[392793847,1761954632302,-60.39165295,0.00014737,2]
[392793848,1761954632315,-89.60834705,0.00014737,2]
[392793849,1761954632324,-150.0,0.00014737,2]
[392793850,1761954632334,-150.0,0.00014772,2]
[392793851,1761954632343,-551.0,0.0001479,2]
[392793852,1761954632353,-551.0,0.00014796,2]
[392793853,1761954632363,-624.34738135,0.000148,2]
[392793854,1761954632372,-551.0,0.00014849,2]
[392793855,1761954632383,-2534.96474436,0.0001485,2]
[392793856,1761954632393,-166.66,0.0001487,2]
[392793857,1761954632402,-500.0,0.00014891,2]
[392793858,1761954632412,-776.45324299,0.00014899,2]
[392793859,1761954632421,-4198.411,0.00014899,2]
[392793860,1761954632430,-167.621,0.00014899,2]
[392793861,1761954632440,-52180.2075,0.000149,2]
[392793862,1761954632449,-161.96918179,0.000149,2]
[392793863,1761954632459,-224.45112068,0.000149,2]
[392793864,1761954632469,-666.0,0.000149,2]
[392793865,1761954632478,-492.87841094,0.000149,2]
[392793866,1761954632488,-500.0,0.00014973,2]
[392793867,1761954632499,-503.46395869,0.00014985,2]
[392793868,1761954632508,-150.0,0.00014986,2]
[392793869,1761954632518,-150.0,0.00014986,2]
[392793870,1761954632527,-150.0,0.00014986,2]
[392793871,1761954632539,-256.49150835,0.00014986,2]
[392793872,1761954632549,-150.0,0.00014986,2]
[392793873,1761954632559,-299.7999999,0.00014986,2]
[392793874,1761954632569,-157.46456532,0.00014986,2]
[392793875,1761954632578,-150.0,0.00014986,2]
[392793876,1761954632588,-150.0,0.00014986,2]
[392793877,1761954632597,-712.51636448,0.0001499,2]
[392793878,1761954632607,-712.51636448,0.0001499,2]
[392793879,1761954632616,-712.51636448,0.0001499,2]
[392793880,1761954632625,-402.69157207,0.00014999,2]
[392793881,1761954632635,-500.0,0.00014999,2]
[392793882,1761954632645,-500.0,0.00014999,2]
[392793883,1761954632655,-500.0,0.00014999,2]
[392793884,1761954632665,-500.0,0.00014999,2]
[392793885,1761954632674,-500.0,0.00014999,2]
[392793886,1761954632683,-500.0,0.00014999,2]
[392793887,1761954632696,-500.0,0.00014999,2]
[392793888,1761954632706,-500.0,0.00014999,2]
[392793889,1761954632716,-500.0,0.00014999,2]
[392793890,1761954632725,-393.92202065,0.00014999,2]
[392793891,1761954633790,500.0,0.00030136,120]
[392793892,1761954634282,500.0,0.00030136,120]
[392793893,1761954635369,500.0,0.00030136,120]
[392793894,1761954636321,500.0,0.00030136,120]
[392793895,1761954637519,-106.07797935,0.00014999,2]
[392793897,1761954637529,-404.50009401,0.00014999,2]
[392793898,1761954637539,-1191.42,0.00014999,2]
[392793899,1761954637548,-500.0,0.00014999,2]
[392793900,1761954637559,-500.0,0.00014999,2]
[392793901,1761954637568,-500.0,0.00014999,2]
[392793902,1761954637578,-500.0,0.00014999,2]
[392793903,1761954637588,-150.0,0.00014999,2]
[392793904,1761954637599,-150.0,0.00014999,2]
[392793905,1761954637608,-150.0,0.00014999,2]
[392793906,1761954637619,-150.0,0.00014999,2]
[392793907,1761954637628,-500.0,0.00014999,2]
[392793908,1761954637638,-500.0,0.00014999,2]
[392793909,1761954637648,-500.0,0.00014999,2]
[392793910,1761954637657,-500.0,0.00014999,2]
[392793911,1761954637667,-150.0,0.00014999,2]
[392793912,1761954637676,-150.0,0.00014999,2]
[392793913,1761954637685,-500.0,0.00014999,2]
[392793914,1761954637695,-150.0,0.00014999,2]
[392793915,1761954637704,-150.0,0.00014999,2]
[392793916,1761954637714,-44.30226169,0.00014999,2]
[392793917,1761954637726,-117.68527371,0.00014999,2]
[392793918,1761954637735,-506.29907877,0.00014999,2]
[392793919,1761954637746,-500.0,0.00014999,2]
[392793920,1761954637757,-500.0,0.00014999,2]
[392793921,1761954637766,-500.0,0.00014999,2]
[392793922,1761954637776,-500.0,0.00014999,2]
[392793924,1761954637785,-500.0,0.00014999,2]
[392793925,1761954637794,-500.0,0.00014999,2]
[392793926,1761954637804,-500.0,0.00014999,2]
[392793927,1761954637814,-500.0,0.00014999,2]
[392793928,1761954637824,-500.0,0.00014999,2]
[392793929,1761954637834,-500.0,0.00014999,2]
[392793930,1761954637843,-500.0,0.00014999,2]
[392793931,1761954637853,-500.0,0.00014999,2]
[392793932,1761954637862,-500.0,0.00014999,2]
[392793933,1761954637871,-500.0,0.00014999,2]
[392793934,1761954637880,-537.33616895,0.00014999,2]
[392793935,1761954637890,-500.0,0.00014999,2]
[392793936,1761954637899,-500.0,0.00014999,2]
[392793937,1761954637909,-500.0,0.00014999,2]
[392793938,1761954637919,-500.0,0.00014999,2]
[392793939,1761954637929,-500.0,0.00014999,2]
[392793940,1761954637942,-500.0,0.00014999,2]
[392793941,1761954637958,-500.0,0.00014999,2]
[392793942,1761954637968,-500.0,0.00014999,2]
[392793943,1761954637978,-500.0,0.00014999,2]
[392793944,1761954637988,-500.0,0.00014999,2]
[392793945,1761954637998,-500.0,0.00014999,2]
[392793946,1761954638008,-500.0,0.00014999,2]
[392793947,1761954638017,-150.0,0.00014999,2]
[392793948,1761954638027,-150.0,0.00014999,2]
[392793949,1761954638036,-150.0,0.00014999,2]
[392793950,1761954638045,-459.0,0.00014999,2]
[392793951,1761954638054,-150.0,0.00014999,2]
[392793952,1761954638063,-777.0,0.00014999,2]
[392793953,1761954638072,-150.0,0.00014999,2]
[392793954,1761954638082,-150.0,0.00014999,2]
[392793955,1761954638091,-150.0,0.00014999,2]
[392793956,1761954638101,-150.0,0.00014999,2]
[392793957,1761954638110,-150.0,0.00014999,2]
[392793958,1761954638119,-150.0,0.00014999,2]
[392793959,1761954638130,-500.0,0.00014999,2]
[392793960,1761954638141,-500.0,0.00014999,2]
[392793961,1761954638151,-789001.4654914,0.00015,2]
[392793962,1761954638160,-2027.73488218,0.00015,2]
[392793963,1761954638170,-7893.81958783,0.00015,2]